bitfinex-derivatives/quotes_SOLF0:USTF0_20250509
["timestamp","ask_amount","ask_price","bid_price","bid_amount"]
[1746776591443,18.66818667,166.18,166.06,1.20438395]
[1746776591648,6.019,166.13,166.0,1.20481927]
[1746776591945,1.9293,166.12,166.0,1.20481927]
[1746776592145,18.66818667,166.08,165.99,6.32738186]
[1746776592344,522.5708,166.07,165.95,1.20518228]
[1746776592549,541.23898667,166.07,165.95,1.20518228]
[1746776592849,522.5708,166.07,165.95,1.20518228]
[1746776593044,18.66818667,166.04,165.77,520.58]
[1746776593343,6.0241,165.99,165.81,6.0303]
[1746776593648,18.66818667,166.0,165.74,2.067]
[1746776593851,18.66818667,165.95,165.68,535.8871463]
[1746776594146,520.64,165.94,165.68,1.2071463]
[1746776594354,18.66818667,165.88,165.68,1.2071463]
[1746776594552,125.08665982,165.93,165.68,1.2071463]
[1746776594742,6.0295,165.85,165.68,1.2071463]
[1746776594938,520.64,165.84,165.68,1.2071463]
[1746776595942,521.84540019,165.92,165.68,1.2071463]
[1746776596445,521.84540019,165.92,165.77,6.0318]
[1746776596644,521.84540019,165.92,165.68,19.87533297]
[1746776596846,521.84540019,165.92,165.68,1.2071463]
[1746776597544,3.9196,165.91,165.68,19.87533297]
[1746776597744,3.9196,165.91,165.73,18.66818667]
[1746776597945,1.20540019,165.92,165.73,32.72818667]
[1746776598140,1.20540019,165.92,165.74,2.0485]
[1746776598548,1.20540019,165.92,165.82,6.0303]
[1746776598745,1.20540019,165.92,165.74,2.0485]
[1746776599052,1.20540019,165.92,165.81,6.0305]
[1746776599349,1.20540019,165.92,165.73,14.06]
[1746776599550,7.9749,165.91,165.78,6.0316]
[1746776599945,520.98,165.9,165.65,14.06]
[1746776600150,18.66818667,165.88,165.65,14.06]
[1746776600352,5.00176354,165.87,165.65,14.06]
[1746776600852,11.03036354,165.87,165.75,6.0327]
[1746776601053,18.77821495,165.85,165.55,13.72]
[1746776601253,18.78433211,165.83,165.59,1.2078024]
[1746776601449,18.78935951,165.81,165.59,1.2078024]
[1746776601758,18.79504189,165.78,165.59,1.2078024]
[1746776601956,520.98,165.8,165.61,6.0378]
[1746776601957,6.0334,165.74,165.61,6.0378]
[1746776602156,3.10968211,165.73,165.61,6.0378]
[1746776602355,3.10968211,165.73,165.59,1.2078024]
[1746776602657,1.20685493,165.72,165.59,1.2078024]
[1746776602953,1.20685493,165.72,165.62,6.0374]
[1746776603151,1.20685493,165.72,165.59,1.2078024]
[1746776603550,1.20685493,165.72,165.62,6.0374]
[1746776603751,1.20685493,165.72,165.59,1.2078024]
[1746776604052,1.20685493,165.72,165.62,6.0373]
[1746776604655,1.20685493,165.72,165.59,1.2078024]
[1746776605054,1.20685493,165.72,165.6,18.77079726]
[1746776605255,1.20685493,165.72,165.7,6.0343]
[1746776606052,1.20685493,165.72,165.68,6.0351]
[1746776606254,1.20685493,165.72,165.59,1.2078024]
[1746776606558,1.20685493,165.72,165.65,6.0363]
[1746776606761,1.20685493,165.72,165.59,1.2078024]
[1746776607253,6.036,165.67,165.59,1.2078024]
[1746776607456,1.20729204,165.66,165.57,1.20794829]
[1746776607655,1.20729204,165.66,165.54,6.0402]
[1746776607856,6.0369,165.64,165.47,6.99702181]
[1746776608052,3.11321071,165.63,165.47,6.99702181]
[1746776608262,1.20758362,165.62,165.47,6.99702181]
[1746776608759,18.77079726,165.61,165.47,6.99702181]
[1746776608959,1.20772946,165.6,165.45,1.20882441]
[1746776609854,18.77079726,165.59,165.45,1.20882441]
[1746776610065,1.20787534,165.58,165.33,1.9177]
[1746776610355,521.58,165.57,165.33,1.9177]
[1746776610557,1.20802126,165.56,165.33,1.9177]
[1746776612358,18.84177021,165.54,165.33,1.9177]
[1746776612554,6.0428,165.48,165.37,6.0465]
[1746776612759,1.8963,165.47,165.3,1.0]
[1746776612957,524.94497831,165.47,165.3,1.0]
[1746776613159,6.0444,165.44,165.32,6.0484]
[1746776613363,1.20897056,165.43,165.3,1.0]
[1746776614562,1.20897056,165.43,165.31,18.84767407]
[1746776614765,1.20897056,165.43,165.3,1.0]
[1746776614962,1.20897056,165.43,165.31,18.83344931]
[1746776615264,6.045,165.42,165.3,1.0]
[1746776615460,1.20897056,165.43,165.3,1.0]
[1746776615657,1.20897056,165.43,165.19,1.05269526]
[1746776615658,3.11801674,165.41,165.19,1.05269526]
[1746776615858,6.0474,165.36,165.25,6.051]
[1746776616165,1.9103,165.35,165.17,1.9674]
[1746776616356,7.9577,165.35,165.26,6.0506]
[1746776616560,1.9103,165.35,165.17,1.9674]
[1746776616764,1.9103,165.35,165.18,522.08]
[1746776616961,1.20918984,165.4,165.22,18.86401227]
[1746776617966,1.20918984,165.4,165.19,1.9876]
[1746776618463,1.20918984,165.4,165.22,18.86401227]
[1746776618766,1.20918984,165.4,165.39,6.046]
[1746776619267,1.20918984,165.4,165.26,10.3]
[1746776619768,1.20918984,165.4,165.39,6.046]
[1746776620766,1.20911674,165.41,165.27,2.0118]
[1746776621166,2.41823348,165.41,165.4,6.0456]
[1746776621664,2.26046183,165.56,165.4,24.85726846]
[1746776621861,1.20802126,165.56,165.52,6.0412]
[1746776622065,2.41648038,165.53,165.52,6.0412]
[1746776623669,1.20802126,165.56,165.55,6.0401]
[1746776623964,1.20758362,165.62,165.48,10.3]
[1746776624368,1.20758362,165.62,165.57,6.0394]
[1746776625070,1.20758362,165.62,165.48,10.3]
[1746776625571,1.20758362,165.62,165.41,2.0168]
[1746776625871,18.80435949,165.59,165.41,3.22591674]
[1746776626066,6.04,165.56,165.41,3.22591674]
[1746776626467,525.32302584,165.58,165.41,3.22591674]
[1746776626670,524.2348,165.58,165.41,1.20911674]
[1746776626869,1.08855228,165.57,165.41,1.20911674]
[1746776627169,6.0408,165.54,165.41,8.20613855]
[1746776627371,1.9721,165.53,165.41,8.20613855]
[1746776628069,0.22074175,165.53,165.41,8.20613855]
[1746776628673,0.22074175,165.53,165.41,9.20613855]
[1746776629262,6.0425,165.49,165.41,8.25401674]
[1746776629460,1.08888067,165.52,165.41,2.20911674]
[1746776629671,0.22074175,165.53,165.41,2.20911674]
[1746776630871,0.22074175,165.53,165.51,6.0415]
[1746776631072,1.9148,165.58,165.42,2.0421]
[1746776631273,1.9148,165.58,165.43,2.0187]
[1746776631572,1.9148,165.58,165.41,2.20911674]
[1746776631766,1.9976,165.57,165.41,1.0]
[1746776632066,1.9976,165.57,165.43,6.99702181]
[1746776632471,6.0405,165.54,165.44,6.0438]
[1746776632772,1.9976,165.57,165.43,6.99702181]
[1746776633174,1.9148,165.58,165.41,1.0]
[1746776633673,1.08852978,165.57,165.41,1.0]
[1746776633874,18.8183158,165.55,165.41,1.0]
[1746776634073,3.10822978,165.54,165.41,1.0]
[1746776634374,1.08852978,165.53,165.41,1.0]
[1746776635171,6.042,165.5,165.41,7.0452]
[1746776635367,2.0197,165.54,165.41,7.0452]
[1746776635563,1.08888792,165.53,165.41,1.0]
[1746776635764,6.0416,165.52,165.41,1.0]
[1746776635977,2.0197,165.54,165.41,1.0]
[1746776636373,6.0409,165.53,165.41,1.0]
[1746776636675,2.0197,165.54,165.41,1.0]
[1746776636971,522.26,165.56,165.41,1.0]
[1746776637678,18.8183158,165.55,165.41,1.0]
[1746776637975,18.8183158,165.55,165.42,6.0448]
[1746776638176,18.8183158,165.55,165.41,1.0]
[1746776638366,6.0424,165.49,165.41,1.0]
[1746776638573,18.8183158,165.55,165.41,1.0]
[1746776638777,1.9616,165.48,165.41,1.0]
[1746776639174,1.9043,165.47,165.37,6.99702181]
[1746776639377,522.32,165.46,165.37,6.99702181]
[1746776641079,522.32,165.46,165.39,6.0459]
[1746776641274,522.32,165.46,165.37,6.99702181]
[1746776641470,1.9616,165.48,165.34,0.7921]
[1746776642072,8.0046,165.48,165.34,0.7921]
[1746776642275,1.9616,165.48,165.34,0.7921]
[1746776642576,1.9236,165.53,165.34,0.7921]
[1746776642777,6.0412,165.52,165.44,6.0439]
[1746776642980,1.9236,165.53,165.34,0.7921]
[1746776643681,6.0412,165.52,165.34,0.7921]
[1746776643980,522.42,165.54,165.37,6.99702181]
[1746776644474,4.0016,165.59,165.38,18.8183158]
[1746776644779,6.0397,165.57,165.5,6.0416]
[1746776644973,5.20918362,165.62,165.5,6.0416]
[1746776645180,5.20918362,165.62,165.39,1.9451]
[1746776645376,5.20918362,165.62,165.4,1.8934]
[1746776645581,1.05162957,165.61,165.4,1.8934]
[1746776645771,6.0394,165.57,165.5,6.0417]
[1746776645977,3.26308362,165.62,165.45,18.8183158]
[1746776646178,1.20758362,165.62,165.46,10.3696]
[1746776646977,1.20758362,165.62,165.5,18.8183158]
[1746776647183,1.20758362,165.62,165.51,4.0533]
[1746776647481,6.0382,165.61,165.51,4.0533]
[1746776647677,1.20758362,165.62,165.51,4.0533]
[1746776648086,4.0016,165.7,165.59,18.56908724]
[1746776648277,4.0016,165.7,165.58,34.42216173]
[1746776648584,2.13918507,165.65,165.56,83.96426174]
[1746776648780,1.08798435,165.64,165.56,83.96426174]
[1746776648981,4.0016,165.7,165.56,83.96426174]
[1746776649181,1.08807271,165.65,165.56,83.96426174]
[1746776649482,19.86958004,165.67,165.56,6.94646507]
[1746776649686,19.86958004,165.67,165.56,3.81236507]
[1746776649981,6.0394,165.57,165.56,3.81236507]
[1746776650380,6.0394,165.57,165.56,0.67676507]
[1746776650780,522.24,165.62,165.56,0.67676507]
[1746776651183,6.0393,165.58,165.56,0.67676507]
[1746776651385,522.24,165.62,165.56,0.67676507]
[1746776651580,528.28,165.62,165.54,55.57172059]
[1746776651884,522.24,165.62,165.54,7.65329101]
[1746776652575,522.24,165.62,165.37,18.8183158]
[1746776653182,522.24,165.62,165.52,6.0409]
[1746776653385,522.24,165.62,165.37,18.8183158]
[1746776653782,522.24,165.62,165.42,18.8183158]
[1746776654185,522.24,165.62,165.44,522.22]
[1746776654885,522.24,165.62,165.52,6.041]
[1746776655075,522.24,165.62,165.44,522.22]
[1746776655278,522.24,165.62,165.51,6.0415]
[1746776655483,522.24,165.62,165.44,522.22]
[1746776655879,522.24,165.62,165.56,6.0396]
[1746776656284,522.24,165.62,165.44,522.22]
[1746776656883,522.24,165.62,165.57,6.039]
[1746776657083,522.24,165.62,165.44,522.22]
[1746776657283,6.0379,165.61,165.44,522.22]
[1746776657492,522.24,165.62,165.44,522.22]
[1746776657883,522.24,165.62,165.54,6.0402]
[1746776658185,522.24,165.62,165.44,522.22]
[1746776658488,522.24,165.62,165.47,6.0428]
[1746776658687,522.24,165.62,165.44,522.22]
[1746776660286,1.20729204,165.66,165.44,522.22]
[1746776660883,1.08792834,165.65,165.44,522.22]
[1746776661092,6.0393,165.58,165.44,522.22]
[1746776661292,1.20729204,165.66,165.44,522.22]
[1746776661688,6.0397,165.57,165.44,522.22]
[1746776662189,6.0397,165.57,165.51,6.0413]
[1746776662387,1.20729204,165.66,165.44,522.22]
[1746776662789,1.20729204,165.66,165.46,1.9849]
[1746776663092,320.19314772,165.65,165.46,1.9849]
[1746776663487,319.105,165.65,165.46,1.9849]
[1746776663789,1.08800596,165.64,165.46,1.9849]
[1746776663989,319.105,165.65,165.46,1.9849]
[1746776664192,319.105,165.65,165.55,6.0401]
[1746776664494,319.105,165.65,165.46,1.9849]
[1746776664794,319.105,165.65,165.47,18.8183158]
[1746776665697,1.20729204,165.66,165.59,6.0386]
[1746776665997,6.0369,165.64,165.47,18.8183158]
[1746776666193,1.20729204,165.66,165.48,8.38]
[1746776666391,1.20729204,165.66,165.6,6.0382]
[1746776666898,1.20729204,165.66,165.61,6.0377]
[1746776667297,1.20729204,165.66,165.49,12.0844]
[1746776667495,1.20729204,165.66,165.63,6.0372]
[1746776667692,1.20729204,165.66,165.52,18.8183158]
[1746776667997,1.20729204,165.66,165.64,6.0367]
[1746776668195,1.20729204,165.66,165.54,522.12]
[1746776668495,1.20729204,165.66,165.62,6.0374]
[1746776668887,1.20729204,165.66,165.54,524.0889]
[1746776669200,6.0375,165.63,165.54,524.0889]
[1746776669410,6.0375,165.63,165.54,1.9689]
[1746776669705,1.20729204,165.66,165.56,6.0394]
[1746776670101,1.20729204,165.66,165.54,1.9689]
[1746776670707,1.20729204,165.66,165.54,8.0094]
[1746776670903,1.20729204,165.66,165.54,1.9689]
[1746776671316,1.20729204,165.66,165.53,1.9439]
[1746776671607,1.08792292,165.65,165.53,1.9439]
[1746776671801,6.0371,165.64,165.53,1.9439]
[1746776672007,1.20729204,165.66,165.53,1.9439]
[1746776672807,1.08792129,165.65,165.53,1.9439]
[1746776673003,1.20729204,165.66,165.57,6.0394]
[1746776673209,1.20729204,165.66,165.53,1.9439]
[1746776674112,1.20729204,165.66,165.6,6.0379]
[1746776674708,7.24349204,165.66,165.59,6.0384]
[1746776674910,1.20729204,165.66,165.53,1.9439]
[1746776675213,1.20729204,165.66,165.64,6.0365]
[1746776675408,1.20729204,165.66,165.53,1.9439]
[1746776676712,1.20729204,165.66,165.53,20.7622158]
[1746776677012,1.20692776,165.71,165.67,6.0355]
[1746776677215,1.20692776,165.71,165.53,20.7622158]
[1746776677712,1.20692776,165.71,165.57,17.05989277]
[1746776677913,1.20692776,165.71,165.58,1.8892]
[1746776678110,1.20692776,165.71,165.63,6.0371]
[1746776678313,1.20692776,165.71,165.58,1.8892]
[1746776678807,1.20692776,165.71,165.6,17.05989277]
[1746776679007,1.20692776,165.71,165.58,1.8892]
[1746776679303,1.20692776,165.71,165.62,17.05989277]
[1746776679510,1.20692776,165.71,165.63,2.0681]
[1746776680613,1.20692776,165.71,165.69,6.035]
[1746776681214,1.20692776,165.71,165.7,6.0347]
[1746776681413,1.20692776,165.71,165.63,19.12799277]
[1746776681414,1.20685493,165.72,165.67,17.05989277]
[1746776681613,1.20685493,165.72,165.68,2.0075]
[1746776681813,1.20685493,165.72,165.71,6.0343]
[1746776682813,1.20685493,165.72,165.64,1.9354]
[1746776683016,1.20685493,165.72,165.64,3.9747]
[1746776683215,1.20685493,165.72,165.64,10.0112]
[1746776683420,6.0354,165.69,165.64,7.9719]
[1746776683615,1.20685493,165.72,165.64,1.9354]
[1746776683814,1.20685493,165.72,165.63,8.1052]
[1746776684216,1.20685493,165.72,165.6,1.12341]
[1746776685619,7.24085493,165.72,165.6,1.12341]
[1746776685823,1.20685493,165.72,165.6,1.12341]
[1746776686117,1.20685493,165.72,165.63,6.0369]
[1746776686417,1.20685493,165.72,165.6,1.12341]
[1746776686619,1.20685493,165.72,165.64,6.0368]
[1746776686921,1.20685493,165.72,165.6,1.12341]
[1746776687122,1.20685493,165.72,165.61,17.05989277]
[1746776688222,1.20685493,165.72,165.68,6.0352]
[1746776688420,1.20685493,165.72,165.61,17.05989277]
[1746776688723,1.20685493,165.72,165.66,6.0359]
[1746776689224,1.20685493,165.72,165.6,1.12341]
[1746776689825,2.41235493,165.72,165.62,6.0373]
[1746776690021,2.41235493,165.72,165.6,1.12341]
[1746776691224,6.0357,165.68,165.62,6.0373]
[1746776691424,2.41235493,165.72,165.61,1.0]
[1746776692433,6.0355,165.68,165.63,6.0369]
[1746776692827,6.0349,165.7,165.64,6.0368]
[1746776693029,2.41235493,165.72,165.61,1.0]
[1746776693335,6.0361,165.66,165.61,1.0]
[1746776693533,2.41235493,165.72,165.61,1.0]
[1746776693923,2.41235493,165.72,165.64,6.0366]
[1746776694120,1.20685493,165.72,165.61,1.0]
[1746776695224,6.0354,165.68,165.62,6.0372]
[1746776695732,1.20685493,165.72,165.61,7.0379]
[1746776696031,1.20685493,165.72,165.61,1.0]
[1746776696240,1.20685493,165.72,165.62,6.0374]
[1746776696526,1.20685493,165.72,165.61,1.0]
[1746776696734,6.035,165.69,165.61,1.0]
[1746776696923,1.20685493,165.72,165.61,1.0]
[1746776697724,6.035,165.7,165.64,6.0365]
[1746776697919,6.035,165.7,165.61,1.0]
[1746776698235,6.035,165.7,165.65,6.0364]
[1746776698529,1.20685493,165.72,165.61,1.0]
[1746776698720,1.20685493,165.72,165.62,17.05989277]
[1746776698919,1.20685493,165.72,165.61,18.05989277]
[1746776699420,1.20685493,165.72,165.69,6.035]
[1746776699621,1.20685493,165.72,165.61,18.05989277]
[1746776699826,1.20685493,165.72,165.61,1.0]
[1746776700029,1.20685493,165.72,165.64,17.05989277]
[1746776700227,1.20685493,165.72,165.65,1.9303]
[1746776700933,1.20678211,165.73,165.71,6.0343]
[1746776701232,521.74,165.81,165.66,17.05989277]
[1746776701425,6.0341,165.72,165.67,6.0355]
[1746776701626,538.79989277,165.81,165.68,1.9043]
[1746776702035,319.105,165.8,165.65,1.9303]
[1746776702236,18.26638369,165.77,165.62,1.9043]
[1746776702425,2.4115,165.76,165.62,1.9043]
[1746776702733,4.4255,165.76,165.62,1.9043]
[1746776702934,1.20649092,165.77,165.65,17.05989277]
[1746776703234,1.20649092,165.77,165.69,17.05989277]
[1746776703934,1.20649092,165.77,165.67,17.05989277]
[1746776705234,6.0325,165.76,165.7,6.0347]
[1746776705432,1.20649092,165.77,165.67,17.05989277]
[1746776706035,1.20649092,165.77,165.63,1.9833]
[1746776706333,6.0331,165.75,165.71,6.0341]
[1746776706531,1.20649092,165.77,165.71,6.0341]
[1746776706930,6.0325,165.76,165.71,6.0341]
[1746776707235,1.20649092,165.77,165.63,3.8913]
[1746776707434,6.034,165.72,165.63,3.8913]
[1746776707637,17.05989277,165.76,165.63,3.8913]
[1746776707935,18.26629277,165.76,165.63,3.8913]
[1746776708135,1.20649092,165.77,165.63,3.8913]
[1746776708531,1.20649092,165.77,165.64,1.20743781]
[1746776709234,6.0325,165.76,165.64,1.20743781]
[1746776709732,6.0329,165.75,165.7,6.0343]
[1746776709930,1.20649092,165.77,165.64,1.20743781]
[1746776711124,18.26638369,165.77,165.64,1.20743781]
[1746776711326,18.26638369,165.77,165.66,6.0361]
[1746776711534,18.26638369,165.77,165.64,1.20743781]
[1746776712035,6.0346,165.71,165.64,1.20743781]
[1746776712328,319.105,165.76,165.64,7.24413781]
[1746776712533,17.05989277,165.73,165.64,1.20743781]
[1746776713029,2.0171,165.72,165.64,1.20743781]
[1746776714136,1.2078,165.71,165.64,1.20743781]
[1746776714633,2.0171,165.72,165.64,1.20743781]
[1746776716335,19.07699277,165.72,165.64,1.20743781]
[1746776716528,1.08755328,165.71,165.64,1.20743781]
[1746776717040,19.07699277,165.72,165.61,1.0]
[1746776717239,319.105,165.71,165.61,1.0]
[1746776717536,17.05989277,165.68,165.61,1.0]
[1746776717737,6.0376,165.62,165.61,1.0]
[1746776718235,6.037,165.64,165.61,1.0]
[1746776718435,1.2059,165.67,165.61,1.0]
[1746776718937,17.05989277,165.68,165.61,1.0]
[1746776719738,521.66,165.7,165.61,1.0]
[1746776720537,6.0362,165.66,165.61,1.0]
[1746776721138,6.0358,165.67,165.61,7.0379]
[1746776721740,6.0362,165.66,165.61,1.0]
[1746776722141,521.66,165.7,165.61,1.0]
[1746776723835,521.66,165.7,165.61,2.9178]
[1746776724039,6.0353,165.69,165.64,6.0366]
[1746776724235,521.66,165.7,165.61,2.9178]
[1746776725140,6.0352,165.69,165.64,6.0366]
[1746776725339,521.66,165.7,165.64,6.0366]
[1746776725537,521.66,165.7,165.61,2.9178]
[1746776725739,6.0353,165.69,165.64,6.0367]
[1746776725939,521.66,165.7,165.61,2.9178]
[1746776726338,320.3137,165.76,165.61,2.9178]
[1746776726540,320.3137,165.76,165.62,3.18868362]
[1746776726740,320.3137,165.76,165.66,6.036]
[1746776726940,320.3137,165.76,165.62,3.18868362]
[1746776727142,337.37359277,165.76,165.62,3.18868362]
[1746776727641,1.08732523,165.75,165.62,1.20758362]
[1746776727842,17.05989277,165.72,165.62,1.20758362]
[1746776728043,320.3142,165.74,165.62,1.20758362]
[1746776729042,17.05989277,165.72,165.62,1.20758362]
[1746776729345,319.105,165.71,165.62,1.20758362]
[1746776729540,17.05989277,165.68,165.61,1.0]
[1746776729739,2.059,165.67,165.6,1.12341]
[1746776729938,338.22389277,165.67,165.6,1.12341]
[1746776730851,338.22389277,165.67,165.5,1.9597]
[1746776730852,319.105,165.66,165.5,1.9597]
[1746776731148,17.05989277,165.63,165.5,1.9597]
[1746776731545,319.105,165.65,165.5,1.9597]
[1746776732050,6.0375,165.63,165.57,6.0394]
[1746776732246,319.105,165.65,165.5,19.01959277]
[1746776733044,319.105,165.65,165.5,20.22805198]
[1746776733447,319.105,165.65,165.51,1.2083862]
[1746776734048,6.0387,165.59,165.53,6.0406]
[1746776734446,319.105,165.65,165.51,1.2083862]
[1746776734645,336.16489277,165.64,165.51,1.2083862]
[1746776734850,319.105,165.63,165.51,1.2083862]
[1746776735444,17.05989277,165.6,165.51,1.2083862]
[1746776735950,17.05989277,165.6,165.49,7.9572]
[1746776736350,17.05989277,165.6,165.49,1.915]
[1746776736748,2.059,165.67,165.49,1.915]
[1746776736955,2.059,165.67,165.5,17.05989277]
[1746776737855,2.059,165.67,165.54,17.05989277]
[1746776738147,521.76,165.68,165.55,3.9203]
[1746776738547,521.76,165.68,165.56,17.05989277]
[1746776738949,521.76,165.68,165.55,3.9203]
[1746776739460,527.7955,165.68,165.55,3.9203]
[1746776739649,521.76,165.68,165.55,3.9203]
[1746776739854,521.76,165.68,165.57,17.05989277]
[1746776740157,521.76,165.68,165.58,2.019]
[1746776740955,6.0368,165.64,165.58,2.019]
[1746776741160,521.76,165.68,165.58,2.019]
[1746776741457,6.0364,165.66,165.61,6.0377]
[1746776741657,521.76,165.68,165.58,2.019]
[1746776741958,527.7956,165.68,165.63,6.0369]
[1746776742157,521.76,165.68,165.58,2.019]
[1746776742657,6.0368,165.65,165.6,6.038]
[1746776742859,521.76,165.68,165.58,2.019]
[1746776743152,521.76,165.68,165.56,1.20802126]
[1746776743455,17.05989277,165.66,165.56,1.20802126]
[1746776743846,1.8951,165.65,165.56,1.20802126]
[1746776744049,6.038,165.61,165.54,6.0404]
[1746776744251,6.038,165.61,165.53,1.9637]
[1746776744449,338.05999277,165.65,165.5,1.9234]
[1746776744654,338.05999277,165.65,165.49,3.9705]
[1746776744853,1.08812791,165.64,165.49,3.9705]
[1746776745456,6.0391,165.58,165.5,6.0417]
[1746776745648,1.08812791,165.64,165.49,3.9705]
[1746776745855,321.0001,165.65,165.49,2.0068]
[1746776746155,321.0001,165.65,165.52,17.05989277]
[1746776746357,321.0001,165.65,165.5,1.9637]
[1746776746858,17.05989277,165.64,165.5,1.9637]
[1746776747058,18.14797356,165.64,165.49,2.0068]
[1746776747258,17.05989277,165.64,165.49,2.0068]
[1746776747959,1.08812884,165.63,165.49,2.0068]
[1746776748162,18.14802161,165.63,165.49,2.0068]
[1746776748461,1.08812884,165.63,165.49,2.0068]
[1746776748960,17.05989277,165.64,165.49,2.0068]
[1746776749363,6.038,165.61,165.49,2.0068]
[1746776749763,17.05989277,165.64,165.49,2.0068]
[1746776749962,6.0376,165.63,165.49,2.0068]
[1746776750166,321.0001,165.65,165.49,2.0068]
[1746776750852,6.0393,165.58,165.51,6.0415]
[1746776751153,17.05989277,165.64,165.49,2.0068]
[1746776751352,6.038,165.61,165.49,2.0068]
[1746776751659,321.0001,165.65,165.5,17.05989277]
[1746776751871,6.0362,165.66,165.6,6.038]
[1746776752061,521.76,165.68,165.55,3.9755]
[1746776752566,6.0366,165.65,165.59,6.0385]
[1746776752764,521.76,165.68,165.59,6.0385]
[1746776752964,521.76,165.68,165.55,3.9755]
[1746776753165,6.0375,165.63,165.55,3.9755]
[1746776753361,521.76,165.68,165.55,1.9479]
[1746776753660,6.0369,165.64,165.51,1.9058]
[1746776753864,6.0369,165.64,165.55,1.0]
[1746776754061,521.76,165.68,165.55,1.0]
[1746776754259,17.05989277,165.67,165.55,1.0]
[1746776754667,1.08789552,165.66,165.55,1.0]
[1746776755061,17.05989277,165.63,165.55,1.0]
[1746776755869,17.05989277,165.63,165.5,1.20845921]
[1746776756367,6.0396,165.57,165.5,7.25015921]
[1746776756864,6.04,165.56,165.5,1.20845921]
[1746776757368,6.0395,165.57,165.5,7.25005921]
[1746776757867,6.0387,165.59,165.52,6.0411]
[1746776758068,17.05989277,165.64,165.52,6.0411]
[1746776758272,17.05989277,165.6,165.5,1.20845921]
[1746776758863,6.0388,165.59,165.53,6.0408]
[1746776759067,336.16489277,165.63,165.5,1.20845921]
[1746776759270,319.105,165.63,165.5,18.26835198]
[1746776759565,6.0368,165.65,165.5,18.26835198]
[1746776759769,521.76,165.68,165.5,18.26835198]
[1746776759958,6.0369,165.64,165.5,18.26835198]
[1746776760158,521.76,165.68,165.5,18.26835198]
[1746776760561,521.76,165.68,165.54,17.05989277]
[1746776760763,521.76,165.68,165.55,6.0456]
[1746776761166,6.0365,165.65,165.55,6.0456]
[1746776761373,521.76,165.68,165.55,6.0456]
[1746776761863,17.05989277,165.67,165.51,1.9084]
[1746776762270,6.0385,165.6,165.54,6.0405]
[1746776762567,17.05989277,165.67,165.51,1.9084]
[1746776762763,319.105,165.66,165.51,1.9084]
[1746776763268,6.0375,165.63,165.57,6.0394]
[1746776763571,319.105,165.66,165.51,1.9084]
[1746776764267,319.105,165.66,165.54,17.05989277]
[1746776764467,319.105,165.66,165.52,1.20831319]
[1746776764667,319.105,165.66,165.52,18.26820596]
[1746776764866,6.0369,165.64,165.59,6.0385]
[1746776765468,6.0369,165.64,165.52,18.26820596]
[1746776765469,6.0373,165.63,165.58,6.039]
[1746776765767,538.81989277,165.68,165.52,18.26820596]
[1746776765964,1.08768568,165.67,165.52,1.20831319]
[1746776766360,1.08768568,165.67,165.54,6.0404]
[1746776766570,1.08768568,165.67,165.52,1.20831319]
[1746776766766,521.76,165.68,165.52,1.20831319]
[1746776766968,521.76,165.68,165.56,6.0394]
[1746776766969,6.0379,165.62,165.56,6.0394]
[1746776767171,521.76,165.68,165.52,1.20831319]
[1746776767374,17.05989277,165.66,165.52,1.20831319]
[1746776767575,6.0388,165.59,165.53,6.0405]
[1746776767868,319.105,165.67,165.52,1.20831319]
[1746776768167,319.105,165.66,165.52,1.20831319]
[1746776768573,6.038,165.61,165.56,6.0394]
[1746776768965,319.105,165.66,165.52,1.20831319]
[1746776769167,6.0382,165.61,165.55,6.04]
[1746776769369,319.105,165.66,165.52,1.20831319]
[1746776769567,319.105,165.66,165.52,18.26820596]
[1746776770276,6.0369,165.64,165.52,18.26820596]
[1746776770568,319.105,165.66,165.52,18.26820596]